bitfinex/quotes_BTCUSD_20260110
["timestamp","ask_amount","ask_price","bid_price","bid_amount"]
[1768047381121,0.00069423,90762.0,90753.0,0.01101891]
[1768047382065,0.00035423,90762.0,90753.0,0.01101891]
[1768047382388,0.00035423,90762.0,90757.0,0.01101843]
[1768047382999,0.04666336,90777.0,90767.0,0.01101721]
[1768047383152,5.037e-05,90777.0,90767.0,0.01101721]
[1768047383351,0.02213037,90777.0,90769.0,0.01101697]
[1768047383892,0.02213037,90777.0,90768.0,0.01101709]
[1768047384190,0.02213037,90777.0,90762.0,0.01101782]
[1768047384543,0.02213037,90777.0,90767.0,0.01101721]
[1768047385568,0.02213037,90777.0,90768.0,0.01101709]
[1768047387509,0.02213037,90777.0,90769.0,0.01101697]
[1768047387710,0.02213037,90777.0,90768.0,0.01101709]
[1768047387909,0.0001529,90780.0,90771.0,0.01101673]
[1768047388113,2.097e-05,90780.0,90770.0,0.22972535]
[1768047388315,2.097e-05,90780.0,90770.0,0.2187085]
[1768047389033,2.097e-05,90780.0,90770.0,0.22972535]
[1768047389267,2.097e-05,90780.0,90770.0,0.2187085]
[1768047390152,2.097e-05,90780.0,90771.0,0.01101673]
[1768047390364,2.097e-05,90780.0,90770.0,0.2187085]
[1768047390854,2.097e-05,90780.0,90769.0,0.01101697]
[1768047391290,2.097e-05,90780.0,90768.0,0.04556098]
[1768047391443,2.097e-05,90780.0,90771.0,0.01101673]
[1768047391647,2.097e-05,90780.0,90769.0,0.06610173]
[1768047393266,2.097e-05,90780.0,90771.0,0.01101673]
[1768047394334,2.097e-05,90780.0,90768.0,0.04556098]
[1768047394551,2.097e-05,90780.0,90770.0,0.01101685]
[1768047395213,2.097e-05,90780.0,90771.0,0.01101673]
[1768047396183,2.097e-05,90780.0,90770.0,0.01101685]
[1768047396603,2.097e-05,90780.0,90768.0,0.04556098]
[1768047397218,2.097e-05,90780.0,90769.0,0.01101697]
[1768047397437,2.097e-05,90780.0,90766.0,0.05508621]
[1768047397438,2.097e-05,90780.0,90765.0,0.02208]
[1768047397591,0.000999,90769.0,90765.0,0.02213037]
[1768047398016,0.04825975,90777.0,90765.0,0.02213037]
[1768047398219,0.04825975,90777.0,90765.0,0.03314783]
[1768047398424,0.04825975,90777.0,90766.0,0.01101734]
[1768047399201,0.04825975,90777.0,90767.0,0.01101721]
[1768047399711,0.04825975,90777.0,90768.0,0.01101709]
[1768047399969,0.04825975,90777.0,90767.0,0.01101721]
[1768047400314,0.04825975,90777.0,90768.0,0.01101709]
[1768047400565,0.04825975,90777.0,90767.0,0.01101721]
[1768047401345,2.097e-05,90780.0,90770.0,0.01101685]
[1768047401759,2.097e-05,90780.0,90768.0,0.06610253]
[1768047401760,2.097e-05,90780.0,90769.0,0.01101697]
[1768047402509,2.097e-05,90780.0,90767.0,0.01101721]
[1768047402716,2.097e-05,90780.0,90768.0,0.01101709]
[1768047403140,2.097e-05,90780.0,90769.0,0.01101697]
[1768047403561,2.097e-05,90780.0,90765.0,0.08223081]
[1768047403773,2.097e-05,90780.0,90769.0,0.01101697]
[1768047404201,2.097e-05,90780.0,90768.0,0.01101709]
[1768047404632,2.097e-05,90780.0,90769.0,0.01101697]
[1768047404844,2.097e-05,90780.0,90767.0,0.06610318]
[1768047405055,2.097e-05,90780.0,90768.0,0.01101709]
[1768047406013,2.097e-05,90780.0,90769.0,0.01101697]
[1768047406509,2.097e-05,90780.0,90768.0,0.01101709]
[1768047406913,2.097e-05,90780.0,90766.0,0.01101734]
[1768047407166,2.097e-05,90780.0,90765.0,0.13731809]
[1768047407351,2.097e-05,90780.0,90768.0,0.01101709]
[1768047407676,2.097e-05,90780.0,90769.0,0.01101697]
[1768047408873,2.097e-05,90780.0,90770.0,0.01101685]
[1768047409054,2.097e-05,90780.0,90769.0,0.01101697]
[1768047409458,2.097e-05,90780.0,90770.0,0.01101685]
[1768047410453,2.097e-05,90780.0,90769.0,0.01101697]
[1768047410776,2.097e-05,90780.0,90767.0,0.01101721]
[1768047410985,0.01103661,90780.0,90766.0,0.01101734]
[1768047411175,0.01103661,90780.0,90765.0,0.08223081]
[1768047411176,0.01101576,90779.0,90765.0,0.08223081]
[1768047411498,0.01101576,90779.0,90766.0,0.01101734]
[1768047411663,2.097e-05,90780.0,90765.0,0.08223081]
[1768047411859,2.097e-05,90780.0,90767.0,0.01101721]
[1768047412853,0.01103661,90780.0,90766.0,0.03305734]
[1768047413166,2.097e-05,90780.0,90767.0,0.01101721]
[1768047413696,2.097e-05,90780.0,90768.0,0.01101709]
[1768047414055,2.097e-05,90780.0,90766.0,0.03305734]
[1768047414256,2.097e-05,90780.0,90767.0,0.01101721]
[1768047415210,0.01103661,90780.0,90766.0,0.03305734]
[1768047415503,2.097e-05,90780.0,90767.0,0.01101721]
[1768047416267,2.097e-05,90780.0,90768.0,0.01101709]
[1768047416453,2.097e-05,90780.0,90767.0,0.01101721]
[1768047416612,2.097e-05,90780.0,90766.0,0.03305734]
[1768047416816,2.097e-05,90780.0,90766.0,0.02204]
[1768047417016,2.097e-05,90780.0,90767.0,0.01101721]
[1768047418563,2.097e-05,90780.0,90768.0,0.01101709]
[1768047418767,2.097e-05,90780.0,90767.0,0.01101721]
[1768047418955,2.097e-05,90780.0,90768.0,0.01101709]
[1768047419105,2.097e-05,90780.0,90766.0,0.02204]
[1768047419482,2.097e-05,90780.0,90768.0,0.01101709]
[1768047421032,2.097e-05,90780.0,90770.0,0.01101685]
[1768047421771,2.097e-05,90780.0,90769.0,0.01101697]
[1768047423447,2.097e-05,90780.0,90770.0,0.01101685]
[1768047423888,2.097e-05,90780.0,90769.0,0.01101697]
[1768047424235,2.097e-05,90780.0,90770.0,0.01101685]
[1768047424477,2.097e-05,90780.0,90767.0,0.02204]
[1768047424802,2.097e-05,90780.0,90767.0,0.03305721]
[1768047425229,2.097e-05,90780.0,90767.0,0.02204]
[1768047425383,0.01103661,90780.0,90767.0,0.02204]
[1768047425599,2.097e-05,90780.0,90767.0,0.02204]
[1768047426499,2.097e-05,90780.0,90768.0,0.01101709]
[1768047426636,2.097e-05,90780.0,90769.0,0.01101697]
[1768047426853,2.097e-05,90780.0,90768.0,0.01101709]
[1768047427038,2.097e-05,90780.0,90767.0,0.03305721]
[1768047427241,2.097e-05,90780.0,90768.0,0.01101709]
[1768047427771,2.097e-05,90780.0,90767.0,0.03305721]
[1768047427920,0.01103661,90780.0,90767.0,0.02204]
[1768047428122,2.097e-05,90780.0,90767.0,0.03305721]
[1768047428545,2.097e-05,90780.0,90767.0,0.02204]
[1768047429175,0.01103661,90780.0,90767.0,0.02204]
[1768047429782,0.01101576,90779.0,90767.0,0.02204]
[1768047429939,0.01101588,90778.0,90767.0,0.02204]
[1768047430147,0.01101576,90779.0,90767.0,0.02204]
[1768047430962,0.01103661,90780.0,90767.0,0.02204]
[1768047431166,0.01101576,90779.0,90767.0,0.02204]
[1768047431382,2.097e-05,90780.0,90767.0,0.02204]
[1768047431585,0.01103661,90780.0,90767.0,0.02204]
[1768047431816,0.01101588,90778.0,90767.0,0.02204]
[1768047431975,0.01103661,90780.0,90767.0,0.02204]
[1768047432331,2.097e-05,90780.0,90767.0,0.03305721]
[1768047432754,2.097e-05,90780.0,90768.0,0.04785425]
[1768047432958,2.097e-05,90780.0,90767.0,0.03305721]
[1768047432959,0.01101479,90787.0,90781.0,0.00997903]
[1768047433161,0.000999,90781.0,90774.0,0.04785425]
[1768047433334,0.000999,90781.0,90775.0,0.01101624]
[1768047433532,0.000999,90781.0,90774.0,0.05887062]
[1768047433691,0.0001529,90789.0,90777.0,0.011016]
[1768047434093,0.0001529,90789.0,90778.0,0.01101588]
[1768047434294,0.0001529,90789.0,90777.0,0.011016]
[1768047434977,0.0001529,90789.0,90778.0,0.01101588]
[1768047435178,0.0001529,90789.0,90775.0,0.01101624]
[1768047435810,0.0001529,90789.0,90779.0,0.01101576]
[1768047436016,0.0001529,90789.0,90777.0,0.011016]
[1768047436415,0.0001529,90789.0,90778.0,0.01101588]
[1768047436789,0.0001529,90789.0,90777.0,0.011016]
[1768047436987,0.04540385,90789.0,90775.0,0.01101624]
[1768047437321,0.0564184,90789.0,90775.0,0.01101624]
[1768047437528,0.04540385,90789.0,90776.0,0.01101612]
[1768047438113,0.0564184,90789.0,90772.0,0.01101661]
[1768047438316,0.01101467,90788.0,90774.0,0.01101637]
[1768047438714,0.0564184,90789.0,90775.0,0.01101624]
[1768047438715,0.04540385,90789.0,90775.0,0.01101624]
[1768047438938,0.0564184,90789.0,90775.0,0.01101624]
[1768047439115,0.04540385,90789.0,90776.0,0.01101612]
[1768047439322,0.0564184,90789.0,90775.0,0.01101624]
[1768047439509,0.04540385,90789.0,90776.0,0.01101612]
[1768047439709,0.06744385,90789.0,90776.0,0.01101612]
[1768047440889,0.0784584,90789.0,90771.0,0.04785425]
[1768047441091,0.06744385,90789.0,90774.0,0.01101637]
[1768047441333,0.0442329,90798.0,90785.0,0.04785425]
[1768047441529,0.0001529,90798.0,90785.0,0.04785425]
[1768047441954,0.0001529,90798.0,90780.0,0.34368035]
[1768047442168,0.0001529,90798.0,90790.0,0.01101442]
[1768047442282,0.0001529,90798.0,90791.0,0.0110143]
[1768047442484,0.0001529,90798.0,90781.0,0.04785425]
[1768047442485,0.0001529,90798.0,90790.0,0.01101442]
[1768047442731,0.0001529,90798.0,90784.0,0.04785425]
[1768047442905,0.0001529,90798.0,90786.0,0.01101491]
[1768047443332,0.0001529,90798.0,90787.0,0.01101479]
[1768047443497,0.0001529,90798.0,90788.0,0.01101467]
[1768047443698,0.0001529,90798.0,90789.0,0.01101455]
[1768047443901,0.0001529,90798.0,90790.0,0.01101442]
[1768047444128,0.0001529,90798.0,90789.0,0.01101455]
[1768047444329,0.0001529,90798.0,90790.0,0.01101442]
[1768047444536,0.0001529,90798.0,90791.0,0.0110143]
[1768047444950,0.0001529,90798.0,90792.0,0.01101418]
[1768047445193,0.0001529,90798.0,90787.0,0.06608875]
[1768047445401,0.0001529,90798.0,90787.0,0.01101479]
[1768047445633,0.0001529,90798.0,90788.0,0.01101467]
[1768047445839,0.0001529,90798.0,90785.0,0.01101503]
[1768047446052,0.0001529,90798.0,90787.0,0.01101479]
[1768047446251,0.0001529,90798.0,90788.0,0.01101467]
[1768047446507,0.0001529,90798.0,90785.0,0.06609012]
[1768047446508,0.0001529,90798.0,90785.0,0.01101503]
[1768047446648,0.0001529,90798.0,90786.0,0.01101491]
[1768047446853,0.0001529,90798.0,90788.0,0.01101467]
[1768047448559,0.0001529,90798.0,90787.0,0.01101479]
[1768047448878,0.0001529,90798.0,90780.0,0.24235062]
[1768047448879,0.0001529,90798.0,90792.0,0.01101418]
[1768047449093,0.0001529,90798.0,90791.0,0.0110143]
[1768047449307,0.0001529,90798.0,90785.0,0.04785425]
[1768047449502,0.0001529,90798.0,90786.0,0.03305491]
[1768047449733,0.0001529,90798.0,90787.0,0.04785425]
[1768047449953,0.0001529,90798.0,90787.0,0.01101479]
[1768047451736,0.0001529,90798.0,90785.0,0.03305503]
[1768047451885,0.0001529,90798.0,90785.0,0.02204]
[1768047452082,0.0001529,90798.0,90778.0,0.01101588]
[1768047452285,0.0001529,90798.0,90784.0,0.02204]
[1768047452650,0.0001529,90798.0,90786.0,0.01101491]
[1768047452911,0.0001529,90798.0,90787.0,0.01101479]
[1768047455595,0.0001529,90798.0,90788.0,0.04854923]
[1768047456017,0.0001529,90798.0,90787.0,0.01101479]
[1768047457271,0.0001529,90798.0,90789.0,0.04854923]
[1768047457440,0.0001529,90798.0,90787.0,0.01101479]
[1768047458658,0.0001529,90798.0,90786.0,0.01096985]
[1768047458974,0.0001529,90798.0,90787.0,0.01101479]
[1768047460220,0.0001529,90798.0,90786.0,0.01101491]
[1768047461388,0.0001529,90798.0,90785.0,0.01101503]
[1768047461618,0.0001529,90798.0,90784.0,0.12566499]
[1768047461619,0.01116635,90798.0,90784.0,0.08160438]
[1768047461906,0.0001529,90798.0,90785.0,0.01101503]
[1768047462343,0.01116635,90798.0,90784.0,0.07058923]
[1768047462493,0.04689381,90797.0,90780.0,0.01101564]
[1768047462652,0.01101382,90795.0,90784.0,0.02204]
[1768047463471,0.0110137,90796.0,90784.0,0.02204]
[1768047463707,0.01101394,90794.0,90781.0,0.01101552]
[1768047463912,0.01101382,90795.0,90781.0,0.01101552]
[1768047464143,0.01101382,90795.0,90781.0,0.05956475]
[1768047465344,0.01101394,90794.0,90781.0,0.05956475]
[1768047465663,0.01101394,90794.0,90781.0,0.04854923]
[1768047465837,0.01101394,90794.0,90781.0,0.05956475]
[1768047466044,0.01101418,90792.0,90781.0,0.04854923]
[1768047466255,0.01101394,90794.0,90780.0,0.02204]
[1768047466445,0.01101406,90793.0,90781.0,0.04854923]
[1768047466836,0.01101394,90794.0,90781.0,0.04854923]
[1768047467037,0.01101406,90793.0,90781.0,0.04854923]
[1768047467238,0.01101394,90794.0,90781.0,0.04854923]
[1768047468041,0.01101382,90795.0,90781.0,0.05956475]
[1768047468837,0.01101394,90794.0,90781.0,0.04854923]
[1768047469945,0.01101382,90795.0,90781.0,0.05956475]
[1768047470145,0.01101394,90794.0,90781.0,0.04854923]
[1768047471538,0.01101382,90795.0,90781.0,0.04854923]
[1768047471945,0.0110137,90796.0,90781.0,0.04854923]
[1768047472109,0.05902614,90796.0,90781.0,0.04854923]
[1768047472320,0.05902614,90796.0,90781.0,0.05956475]
[1768047473027,0.01101382,90795.0,90781.0,0.05956475]
[1768047473225,0.01101406,90793.0,90781.0,0.04854923]
[1768047474074,0.10308519,90789.0,90774.0,0.07927266]
[1768047474195,0.10308519,90789.0,90774.0,0.02204]
[1768047474196,0.000999,90779.0,90774.0,0.02204]
[1768047474396,0.01101479,90787.0,90774.0,0.02204]
[1768047474588,0.01101467,90788.0,90774.0,0.03305637]
[1768047474794,0.01101479,90787.0,90774.0,0.02204]
[1768047475033,0.01101491,90786.0,90774.0,0.02204]
[1768047475509,0.01101503,90785.0,90774.0,0.02204]
[1768047476001,0.01101491,90786.0,90774.0,0.02204]
[1768047476210,0.01101515,90784.0,90774.0,0.02204]
[1768047476354,0.06608993,90786.0,90774.0,0.02204]
[1768047476355,0.01101503,90785.0,90774.0,0.02204]
[1768047476559,0.01101491,90786.0,90774.0,0.02204]
[1768047477043,0.01101503,90785.0,90774.0,0.02204]
[1768047478093,0.01101479,90787.0,90774.0,0.02204]
[1768047478327,0.01101491,90786.0,90774.0,0.02204]
[1768047478534,0.01101479,90787.0,90774.0,0.02204]
[1768047479769,0.01101491,90786.0,90774.0,0.02204]
[1768047480238,0.01101479,90787.0,90774.0,0.02204]
[1768047481622,0.01101491,90786.0,90774.0,0.02204]
[1768047482198,0.01101479,90787.0,90774.0,0.02204]
[1768047482578,0.01101491,90786.0,90772.0,0.01101661]
[1768047482801,0.01101491,90786.0,90772.0,0.03305661]
[1768047483991,0.01101503,90785.0,90772.0,0.02204]
[1768047484195,0.05823463,90785.0,90772.0,0.02204]
[1768047484406,0.01101527,90783.0,90772.0,0.02204]
[1768047484847,0.01101515,90784.0,90772.0,0.02204]
[1768047485014,0.01101527,90783.0,90772.0,0.02204]
[1768047485212,0.01101539,90782.0,90772.0,0.02204]
[1768047485733,0.01101527,90783.0,90772.0,0.02204]
[1768047486139,0.01101515,90784.0,90772.0,0.02204]
[1768047486732,0.01101527,90783.0,90772.0,0.02197165]
[1768047488358,0.01101515,90784.0,90772.0,0.02197165]
[1768047488744,0.01101527,90783.0,90772.0,0.02197165]
[1768047488947,0.01101515,90784.0,90772.0,0.02197165]
[1768047489301,0.05823463,90785.0,90772.0,0.02197165]
[1768047489505,0.0472196,90785.0,90772.0,0.02197165]
[1768047490290,0.05823463,90785.0,90772.0,0.03298826]
[1768047490546,0.05823463,90785.0,90772.0,0.02197165]
[1768047490718,0.0472196,90785.0,90772.0,0.03298826]
[1768047491206,0.05823463,90785.0,90772.0,0.02197165]
[1768047492503,0.0472196,90785.0,90772.0,0.03298826]
[1768047492948,0.0472196,90785.0,90772.0,0.02197165]
[1768047494250,0.05823463,90785.0,90772.0,0.02197165]
[1768047495474,0.0472196,90785.0,90772.0,0.03298826]
[1768047495997,0.05823463,90785.0,90772.0,0.02197165]
[1768047496203,0.01101515,90784.0,90772.0,0.02197165]
[1768047500201,0.01101539,90782.0,90772.0,0.02197165]
[1768047500401,0.000178,90772.0,90766.0,0.0001529]
[1768047500600,0.01101588,90778.0,90766.0,0.0001529]
[1768047500803,0.0472196,90778.0,90766.0,0.01117024]
[1768047501005,0.0472196,90778.0,90766.0,0.0001529]
[1768047501227,0.0472196,90777.0,90766.0,0.0001529]
[1768047502201,0.0472196,90777.0,90766.0,0.01117024]
[1768047502981,0.0472196,90777.0,90767.0,0.01101721]
[1768047503789,0.0472196,90777.0,90768.0,0.01101709]
[1768047503991,0.0472196,90777.0,90767.0,0.01101721]
[1768047504193,0.0472196,90780.0,90777.0,0.000821]
[1768047504375,0.02204,90781.0,90777.0,0.000821]
[1768047504915,0.02204,90781.0,90773.0,0.01101649]
[1768047506016,0.021219,90781.0,90778.0,0.01101588]
[1768047506564,0.021219,90781.0,90777.0,0.011016]
[1768047507092,0.021219,90781.0,90777.0,0.05614606]
[1768047507665,0.021219,90781.0,90778.0,0.01101588]
[1768047507867,0.021219,90781.0,90777.0,0.04513006]
[1768047510091,0.021219,90781.0,90774.0,0.01101637]
[1768047512417,0.021219,90781.0,90776.0,0.01101612]
[1768047513041,0.021219,90781.0,90775.0,0.01101624]
[1768047513217,0.021219,90781.0,90776.0,0.01101612]
[1768047513832,0.021219,90781.0,90775.0,0.01101624]
[1768047514036,0.021219,90781.0,90776.0,0.01101612]
[1768047514237,0.021219,90781.0,90775.0,0.01101624]
[1768047514550,0.021219,90781.0,90776.0,0.01101612]
[1768047515890,0.021219,90781.0,90775.0,0.01101624]
[1768047516520,0.021219,90781.0,90776.0,0.01101612]
[1768047518492,0.02204,90790.0,90779.0,0.04801494]
[1768047520246,0.03305442,90790.0,90777.0,0.011016]
[1768047520410,0.02204,90790.0,90777.0,0.011016]
[1768047520623,0.04555641,90789.0,90777.0,0.011016]
[1768047521037,0.04555641,90789.0,90778.0,0.01101588]
[1768047521243,0.04555641,90789.0,90777.0,0.011016]
[1768047521453,0.04555641,90789.0,90778.0,0.01101588]
[1768047522248,0.04555641,90789.0,90777.0,0.011016]
[1768047523062,0.04555641,90789.0,90778.0,0.01101588]
[1768047523302,0.04555641,90789.0,90779.0,0.01101576]
[1768047523505,0.04555641,90789.0,90778.0,0.01101588]
[1768047524289,0.04555641,90789.0,90779.0,0.01101576]
[1768047524891,0.04555641,90789.0,90777.0,0.011016]
[1768047525638,0.24074149,90790.0,90778.0,0.04801494]
[1768047525758,0.24074149,90790.0,90778.0,0.05903082]
[1768047526186,0.24074149,90790.0,90778.0,0.04801494]
[1768047526473,0.24074149,90790.0,90778.0,0.05903082]
[1768047527830,0.24074149,90790.0,90778.0,0.04801494]
[1768047527973,0.24074149,90790.0,90778.0,0.05903082]
[1768047530015,0.25175591,90790.0,90778.0,0.04801494]
[1768047530225,0.02204,90790.0,90778.0,0.04801494]
[1768047530503,0.01101455,90789.0,90774.0,0.01101637]
[1768047530838,0.01101455,90789.0,90775.0,0.01101624]
[1768047531501,0.01101467,90788.0,90772.0,0.11411454]
[1768047531618,0.01101455,90789.0,90774.0,0.01101637]
[1768047531814,0.01101455,90789.0,90775.0,0.01101624]
[1768047531815,0.02204,90787.0,90775.0,0.01101624]
[1768047532681,0.02204,90787.0,90774.0,0.01101637]
[1768047533093,0.03305479,90787.0,90773.0,0.01101649]
[1768047533404,0.02204,90787.0,90774.0,0.01101637]
[1768047533556,0.03305479,90787.0,90773.0,0.01101649]
[1768047533961,0.02204,90787.0,90773.0,0.01101649]
[1768047534167,0.05971053,90785.0,90770.0,0.02204]
[1768047534351,0.21870149,90780.0,90770.0,0.02204]
[1768047535389,0.21870149,90780.0,90773.0,0.01101649]
[1768047535593,0.0486955,90785.0,90773.0,0.01101649]
[1768047538363,0.0486955,90785.0,90774.0,0.01101637]
[1768047538770,0.02204,90787.0,90774.0,0.01101637]
[1768047539269,0.02204,90787.0,90775.0,0.0475787]
[1768047539417,0.02204,90787.0,90775.0,0.05859494]
[1768047539618,0.03305479,90787.0,90775.0,0.0475787]
[1768047539822,0.01101491,90786.0,90775.0,0.0475787]
[1768047540023,0.03305479,90787.0,90775.0,0.0475787]
[1768047540223,0.01101491,90786.0,90775.0,0.0475787]
[1768047540655,0.01101503,90785.0,90775.0,0.0475787]
[1768047540862,0.01101515,90784.0,90775.0,0.0475787]
[1768047541278,0.05507667,90783.0,90775.0,0.0475787]
[1768047541532,0.01101539,90782.0,90775.0,0.0475787]
[1768047541738,0.01101527,90783.0,90775.0,0.0475787]
[1768047542152,0.01101539,90782.0,90775.0,0.0475787]
[1768047542364,0.01101552,90781.0,90775.0,0.0475787]
[1768047542886,0.01101564,90780.0,90775.0,0.0475787]
[1768047543457,0.01101539,90782.0,90775.0,0.0475787]
[1768047544309,0.000999,90775.0,90771.0,0.04889707]
[1768047544727,0.000999,90775.0,90766.0,0.0001529]
[1768047544928,0.28479593,90780.0,90766.0,0.04904997]
[1768047545279,0.01101576,90779.0,90766.0,0.04904997]
[1768047545515,0.01101588,90778.0,90766.0,0.04904997]
[1768047545904,0.011016,90777.0,90766.0,0.04904997]
[1768047546082,0.06609606,90777.0,90766.0,0.04904997]
[1768047546724,0.0660969,90776.0,90766.0,0.04904997]
[1768047547535,0.01101637,90774.0,90766.0,0.04904997]
[1768047547792,0.01101624,90775.0,90766.0,0.04904997]
[1768047548993,0.011016,90777.0,90766.0,0.04904997]
[1768047549189,0.01101612,90776.0,90766.0,0.0001529]
[1768047549342,0.01101624,90775.0,90766.0,0.0001529]
[1768047549524,0.01101673,90771.0,90766.0,0.0001529]
[1768047549722,0.01101612,90776.0,90765.0,5.037e-05]
[1768047549723,0.21870149,90776.0,90765.0,5.037e-05]
[1768047549966,0.01101709,90768.0,90765.0,5.037e-05]
[1768047550143,0.01101709,90768.0,90756.0,0.12714533]
[1768047550308,0.01101697,90769.0,90756.0,0.04928707]
[1768047550513,0.22971834,90770.0,90756.0,0.04928707]
[1768047550959,0.22971834,90770.0,90756.0,0.03870638]
[1768047550960,0.21870149,90766.0,90756.0,0.03870638]
[1768047551157,0.01101697,90769.0,90756.0,0.00039]
[1768047551158,0.01101709,90768.0,90756.0,0.00039]
[1768047551388,0.01101734,90766.0,90756.0,0.00039]
[1768047551587,0.01101721,90767.0,90756.0,0.00039]
[1768047551791,0.01101709,90768.0,90756.0,0.00039]
[1768047552343,0.01101697,90769.0,90756.0,0.00039]
[1768047552541,0.01101734,90766.0,90756.0,0.00039]
[1768047552769,0.01101709,90768.0,90756.0,0.00039]
[1768047552908,0.01101721,90767.0,90756.0,0.00039]
[1768047553243,0.01101709,90768.0,90756.0,0.00039]
[1768047553447,0.06610311,90768.0,90756.0,0.00039]
[1768047553651,0.01101734,90766.0,90756.0,0.00039]
[1768047553950,0.01101709,90768.0,90756.0,0.00039]
[1768047556023,0.01101697,90769.0,90756.0,0.00039]
[1768047556225,0.01101709,90768.0,90756.0,0.00039]
[1768047556752,0.01101697,90769.0,90756.0,0.00039]
[1768047557172,0.25175834,90770.0,90756.0,0.00039]
[1768047557732,0.24074149,90770.0,90756.0,0.00039]
[1768047557937,0.01101697,90769.0,90756.0,0.00039]
[1768047558142,0.25175834,90770.0,90756.0,0.01140855]
[1768047558341,0.01101697,90769.0,90756.0,0.00039]
[1768047559827,0.01101697,90769.0,90756.0,0.01140855]
[1768047560408,0.01101697,90769.0,90756.0,0.00039]
[1768047560629,0.25175834,90770.0,90756.0,0.01140855]
[1768047560931,0.01101697,90769.0,90756.0,0.00039]
[1768047561340,0.25175834,90770.0,90756.0,0.01140855]
[1768047561578,0.02204,90770.0,90758.0,0.01101831]
[1768047561768,0.25175834,90770.0,90756.0,0.04928707]
[1768047561971,0.25175834,90770.0,90756.0,0.06030562]
[1768047562128,0.01101697,90769.0,90756.0,0.04928707]
[1768047562706,0.25175834,90770.0,90756.0,0.04928707]
[1768047562871,0.25175834,90770.0,90757.0,0.01101843]
[1768047563084,0.25175834,90770.0,90756.0,0.06030562]
[1768047563454,0.24074149,90770.0,90756.0,0.04928707]
[1768047563645,0.24074149,90770.0,90757.0,0.01101843]
[1768047564476,0.25175834,90770.0,90756.0,0.06030562]
[1768047565047,0.24074149,90770.0,90757.0,0.01101843]
[1768047565291,0.24074149,90770.0,90757.0,0.0599155]
[1768047565605,0.24074149,90770.0,90757.0,0.04889707]
[1768047565783,0.25175834,90770.0,90757.0,0.0599155]
[1768047565997,0.25175834,90770.0,90757.0,0.04889707]
[1768047566786,0.24074149,90770.0,90757.0,0.0599155]
[1768047567385,0.24074149,90770.0,90757.0,0.04889707]
[1768047567882,0.25175834,90770.0,90757.0,0.04889707]
[1768047568578,0.03305685,90770.0,90757.0,0.04889707]
[1768047569339,0.02204,90770.0,90757.0,0.0599155]
[1768047569703,0.03305685,90770.0,90757.0,0.04889707]
[1768047570037,0.08814127,90770.0,90757.0,0.04889707]
[1768047570264,0.01101697,90769.0,90757.0,0.04889707]
[1768047570811,0.01101709,90768.0,90757.0,0.04889707]
[1768047571934,0.01101697,90769.0,90757.0,0.04889707]
[1768047573099,0.03305685,90770.0,90757.0,0.04889707]
[1768047573312,0.01101697,90769.0,90757.0,0.04889707]
[1768047573908,0.02204,90770.0,90757.0,0.04889707]
[1768047574371,0.03305685,90770.0,90757.0,0.04889707]
[1768047574520,0.02204,90770.0,90757.0,0.0599155]
[1768047574968,0.03305685,90770.0,90757.0,0.0599155]
[1768047575155,0.02204,90770.0,90758.0,0.01101831]
[1768047575326,0.02204,90770.0,90757.0,0.0599155]
[1768047576701,0.02204,90770.0,90758.0,0.01101831]
[1768047576911,0.02204,90770.0,90757.0,0.0599155]
[1768047577911,0.03305685,90770.0,90757.0,0.04889707]
[1768047578041,0.02204,90770.0,90757.0,0.04889707]
[1768047578387,0.02204,90770.0,90757.0,0.0599155]
[1768047580288,0.02204,90770.0,90758.0,0.01101831]
[1768047580638,0.02204,90770.0,90757.0,0.0599155]
[1768047582243,0.02204,90770.0,90758.0,0.01101831]
[1768047588275,0.02204,90770.0,90759.0,0.01101819]
[1768047588696,0.02204,90770.0,90758.0,0.01101831]
[1768047596745,0.02204,90770.0,90757.0,0.0599155]
[1768047597045,0.02204,90770.0,90758.0,0.01101831]
[1768047598656,0.02204,90770.0,90757.0,0.0599155]
[1768047598793,0.02204,90770.0,90758.0,0.01101831]
[1768047599465,0.02204,90770.0,90757.0,0.0599155]
[1768047599613,0.02204,90770.0,90758.0,0.01101831]
[1768047603984,0.02204,90770.0,90761.0,0.01101794]
[1768047604302,0.02204,90770.0,90762.0,0.0449299]
[1768047604867,0.01101637,90774.0,90762.0,0.0449299]
[1768047605071,0.01101661,90772.0,90762.0,0.0449299]
[1768047605271,0.02204,90773.0,90762.0,0.0449299]
[1768047605803,0.03305649,90773.0,90762.0,0.0449299]
[1768047606004,0.03305649,90773.0,90759.0,0.01101819]
[1768047606211,0.02204,90773.0,90760.0,0.01101806]
[1768047606355,0.02204,90773.0,90758.0,0.05594821]
[1768047606559,0.03305649,90773.0,90759.0,0.05594809]
[1768047606821,0.02204,90773.0,90760.0,0.05594796]
[1768047607115,0.03305649,90773.0,90760.0,0.0449299]
[1768047607622,0.01101661,90772.0,90760.0,0.0449299]
[1768047607827,0.03305649,90773.0,90760.0,0.0449299]
[1768047609042,0.02204,90773.0,90760.0,0.0449299]
[1768047609223,0.02204,90773.0,90760.0,0.05594796]
[1768047609628,0.02204,90773.0,90761.0,0.01101794]
[1768047609961,0.02204,90773.0,90760.0,0.05594796]
[1768047610306,0.02204,90773.0,90761.0,0.01101794]
[1768047611169,0.02204,90773.0,90760.0,0.01101806]
[1768047611584,0.02204,90773.0,90761.0,0.01101794]
[1768047613712,0.02204,90773.0,90760.0,0.01101806]
[1768047613872,0.02204,90773.0,90761.0,0.01101794]
[1768047614454,0.02204,90773.0,90760.0,0.01101806]
[1768047614633,0.03305649,90773.0,90758.0,0.01101831]
[1768047614803,0.02204,90772.0,90761.0,0.01101794]
[1768047614970,0.02204,90772.0,90758.0,0.01101831]
[1768047615583,0.02204,90772.0,90760.0,0.01101806]
[1768047615988,0.02204,90772.0,90759.0,0.01101819]
[1768047616418,0.02204,90772.0,90760.0,0.01101806]
[1768047616822,0.02204,90772.0,90759.0,0.01101819]
[1768047617033,0.02204,90772.0,90761.0,0.01101794]
[1768047617493,0.02204,90772.0,90759.0,0.01101819]
[1768047617765,0.02204,90772.0,90760.0,0.01101806]
[1768047618630,0.02204,90772.0,90762.0,0.01101782]
[1768047618834,0.02204,90772.0,90764.0,0.01101758]
[1768047619033,0.00039,90776.0,90767.0,0.01101721]
[1768047619234,0.00039,90776.0,90765.0,0.01101746]
[1768047619235,0.02204,90775.0,90766.0,0.01101734]
[1768047619450,0.02204,90774.0,90765.0,0.01101746]
[1768047619647,0.02204,90774.0,90764.0,0.01101758]
[1768047619999,0.02204,90774.0,90763.0,0.0110177]
[1768047621262,0.02204,90774.0,90764.0,0.01101758]
[1768047622637,0.02204,90774.0,90765.0,0.01101746]
[1768047623689,0.02204,90774.0,90766.0,0.01101734]
[1768047624999,0.02204,90774.0,90765.0,0.01101746]
[1768047627907,0.02204,90774.0,90764.0,0.01101758]
[1768047628742,0.02204,90774.0,90763.0,0.0110177]
[1768047628945,0.02204,90774.0,90764.0,0.01101758]
[1768047629830,0.00039,90776.0,90764.0,0.01101758]
[1768047630248,0.00039,90776.0,90766.0,0.01101734]